bitfinex-derivatives/quotes_ETHF0:USTF0_20260121
["timestamp","ask_amount","ask_price","bid_price","bid_amount"]
[1769038523463,0.90559597,3008.7,3007.9,0.00317209]
[1769038523653,1.20466452,3008.6,3008.0,2.95634237]
[1769038523857,0.29906855,3008.5,3008.0,2.95634237]
[1769038524058,0.44229885,3008.8,3007.9,0.00317209]
[1769038524259,0.29905203,3008.7,3008.0,2.95634237]
[1769038524566,0.29905203,3008.6,3008.0,2.95634237]
[1769038524764,0.29905203,3008.5,3008.1,2.95634237]
[1769038524958,0.00279161,3008.8,3008.2,2.95634237]
[1769038525159,0.00279161,3008.8,3008.1,2.95634237]
[1769038525564,0.00279161,3008.8,3008.2,2.95634237]
[1769038525764,0.00279161,3008.8,3008.1,2.95634237]
[1769038526167,0.00279161,3008.8,3008.2,2.95634237]
[1769038526358,0.00279161,3008.8,3008.1,2.95634237]
[1769038526764,0.00279161,3008.8,3008.2,2.95634237]
[1769038527063,0.00279161,3008.8,3007.9,0.00317209]
[1769038527064,0.00279161,3008.8,3008.1,2.95634237]
[1769038527570,0.00279161,3008.8,3008.2,2.95634237]
[1769038527770,0.00279161,3008.8,3008.1,2.95634237]
[1769038528172,0.00279161,3008.8,3008.2,2.95634237]
[1769038528372,0.00279161,3008.8,3008.1,2.95634237]
[1769038528872,0.00279161,3008.8,3008.2,2.95634237]
[1769038529068,0.00279161,3008.8,3007.9,0.00317209]
[1769038529473,0.00279161,3008.8,3008.2,2.95634237]
[1769038529872,0.00279161,3008.8,3008.3,2.95634237]
[1769038530173,0.00279161,3008.8,3008.2,2.95634237]
[1769038531278,0.00279161,3008.8,3007.9,0.00317209]
[1769038531477,0.00279161,3008.8,3008.2,2.95634237]
[1769038531878,0.00279161,3008.8,3008.3,2.95634237]
[1769038532074,0.00279161,3008.8,3008.2,2.95634237]
[1769038532376,0.00279161,3008.8,3008.3,2.95634237]
[1769038532568,0.00279161,3008.8,3008.4,2.95634237]
[1769038532768,0.00279161,3008.8,3008.2,2.95634237]
[1769038533270,0.00279161,3008.8,3008.3,2.95634237]
[1769038533471,0.00279161,3008.8,3008.2,2.95634237]
[1769038533875,0.90198983,3008.7,3008.3,2.95634237]
[1769038534072,0.90198983,3008.6,3008.2,2.95634237]
[1769038534271,0.90198983,3008.5,3008.2,2.95634237]
[1769038534472,0.90198983,3008.4,3008.3,2.95634237]
[1769038534775,0.90198983,3008.7,3008.2,2.95634237]
[1769038535278,0.90198983,3008.7,3008.4,2.95634237]
[1769038535476,0.90198983,3008.7,3008.3,2.95634237]
[1769038535872,0.90198983,3008.7,3008.5,2.95634237]
[1769038536173,0.90198983,3008.7,3008.3,2.95634237]
[1769038536379,1.06830983,3008.7,3007.9,0.00317209]
[1769038536573,1.06831983,3008.6,3007.4,1.849]
[1769038536877,1.19037269,3008.5,3007.2,2.73761238]
[1769038537175,1.19037269,3008.4,3007.2,2.73761238]
[1769038537479,1.19037269,3008.3,3007.2,2.7404057]
[1769038537679,0.90198983,3008.2,3007.2,2.7404057]
[1769038537871,0.16633,3008.6,3007.2,2.7404057]
[1769038538072,1.18212915,3008.5,3007.3,0.40161238]
[1769038538370,0.89580444,3008.4,3007.3,0.40161238]
[1769038538570,0.89580444,3008.3,3007.3,0.40161238]
[1769038538772,0.16633,3008.6,3007.3,0.40161238]
[1769038538974,1.18122405,3008.5,3007.3,0.40161238]
[1769038539275,0.89496263,3008.4,3007.3,0.40161238]
[1769038539480,0.89496263,3008.3,3007.3,0.40161238]
[1769038539681,0.16633,3008.6,3007.3,0.40161238]
[1769038539883,0.16634,3008.4,3007.3,0.40161238]
[1769038540174,0.89494612,3008.3,3007.3,0.40161238]
[1769038540378,0.89494612,3008.2,3007.3,0.40161238]
[1769038540574,0.16634,3008.4,3007.3,0.40161238]
[1769038540777,0.89489201,3008.3,3007.3,0.40161238]
[1769038540977,0.89489201,3008.2,3007.3,0.40161238]
[1769038541174,0.16634,3008.4,3007.3,0.40161238]
[1769038541372,0.89491917,3008.3,3007.3,0.40161238]
[1769038541578,0.89491917,3008.2,3007.3,0.40161238]
[1769038541776,0.16634,3008.4,3007.3,0.40161238]
[1769038541981,0.89491327,3008.3,3007.3,0.40161238]
[1769038542182,0.89491327,3008.2,3007.3,0.40161238]
[1769038542383,0.16634,3008.4,3007.3,0.40161238]
[1769038542587,0.89488141,3008.3,3007.3,0.40161238]
[1769038542784,0.89488141,3008.2,3007.3,0.40161238]
[1769038542983,0.16634,3008.4,3007.3,0.40161238]
[1769038543182,0.89486936,3008.3,3007.3,0.40161238]
[1769038543384,0.89486936,3008.2,3007.3,0.40161238]
[1769038543681,0.16634,3008.4,3007.3,0.40161238]
[1769038543882,0.89483612,3008.3,3007.3,0.40161238]
[1769038544079,0.89483612,3008.2,3007.3,0.40161238]
[1769038544285,0.16634,3008.4,3007.3,0.40161238]
[1769038544483,0.89479353,3008.3,3007.3,0.40161238]
[1769038544683,0.89479353,3008.2,3007.3,0.40161238]
[1769038544877,0.16634,3008.4,3007.3,0.40161238]
[1769038545079,0.8947927,3008.3,3007.3,0.40161238]
[1769038545280,0.8947927,3008.2,3007.3,0.40161238]
[1769038545486,0.16634,3008.4,3007.3,0.40161238]
[1769038545684,0.89474011,3008.3,3007.3,0.40161238]
[1769038545882,0.89474011,3008.2,3007.3,0.40161238]
[1769038546084,0.16634,3008.4,3007.3,0.40161238]
[1769038546286,1.06100399,3008.3,3007.3,0.40161238]
[1769038546484,1.06101399,3008.2,3007.2,0.00279332]
[1769038546689,0.89466399,3008.1,3007.2,0.00279332]
[1769038546987,0.88998656,3008.0,3007.2,0.00279332]
[1769038547184,0.16636,3008.1,3007.2,0.00279332]
[1769038547383,0.88984148,3008.0,3007.2,0.00279332]
[1769038547580,0.16636,3008.1,3007.2,0.00279332]
[1769038547777,0.8898415,3008.0,3007.2,0.00279332]
[1769038547983,0.16636,3008.1,3007.2,0.00279332]
[1769038548179,0.88984413,3008.0,3007.2,0.00279332]
[1769038548389,0.16636,3008.1,3007.2,0.00279332]
[1769038548587,0.88970749,3008.0,3007.2,0.00279332]
[1769038548791,0.16636,3008.1,3007.2,0.00279332]
[1769038548988,0.88970758,3008.0,3007.2,0.00279332]
[1769038549191,0.16636,3008.1,3007.2,0.00279332]
[1769038549889,0.16633,3008.6,3007.2,0.4044057]
[1769038550090,1.05596882,3008.5,3007.2,0.4044057]
[1769038550282,0.88963882,3008.4,3007.2,0.4044057]
[1769038550992,0.88963882,3008.4,3007.2,0.00279332]
[1769038551697,0.57481779,3008.2,3007.2,0.00279332]
[1769038551995,0.40846779,3008.0,3007.2,0.00279332]
[1769038552293,0.57482779,3008.0,3007.2,0.00279332]
[1769038552492,0.40846779,3007.8,3006.3,0.56806238]
[1769038553388,0.40846779,3007.8,3006.3,0.57202745]
[1769038554692,0.16637,3007.9,3006.4,0.40161238]
[1769038554894,0.16637,3007.9,3006.8,0.94714275]
[1769038557696,0.16637,3007.9,3007.1,0.94714275]
[1769038558494,0.16637,3007.9,3006.8,0.94714275]
[1769038560588,0.40846779,3008.3,3007.1,0.94714275]
[1769038561094,0.16634,3008.5,3007.7,0.94714275]
[1769038561395,0.00279161,3008.8,3007.7,0.94714275]
[1769038561594,0.88870309,3008.7,3007.7,0.94714275]
[1769038561799,0.00279161,3008.8,3007.7,0.94714275]
[1769038561995,0.8886998,3008.7,3007.7,0.94714275]
[1769038562200,0.88901098,3008.6,3007.7,0.94714275]
[1769038562395,0.16911161,3008.8,3007.7,0.94714275]
[1769038562597,0.88887822,3008.7,3007.7,0.94714275]
[1769038562797,0.88887822,3008.6,3007.7,0.94714275]
[1769038562994,0.16911161,3008.8,3007.7,0.94714275]
[1769038563194,0.88881997,3008.7,3007.7,0.94714275]
[1769038563395,0.88881997,3008.6,3007.7,0.94714275]
[1769038563690,0.16911161,3008.8,3007.7,0.94714275]
[1769038563897,0.88889538,3008.7,3007.7,0.94714275]
[1769038564100,0.88889538,3008.6,3007.7,0.94714275]
[1769038564301,0.16911161,3008.8,3007.7,0.94714275]
[1769038564490,0.8887812,3008.7,3007.7,0.94714275]
[1769038564695,0.8887812,3008.6,3007.7,0.94714275]
[1769038564896,0.16911161,3008.8,3007.7,0.94714275]
[1769038565098,0.88878285,3008.7,3007.7,0.94714275]
[1769038565299,0.16911161,3008.8,3007.7,0.94714275]
[1769038565495,0.88867592,3008.7,3007.7,0.94714275]
[1769038565698,0.16911161,3008.8,3007.7,0.94714275]
[1769038565899,0.88867592,3008.7,3007.7,0.94714275]
[1769038566197,0.16911161,3008.8,3007.7,0.94714275]
[1769038567501,0.16911161,3008.8,3008.0,0.94714275]
[1769038571202,0.00279161,3008.8,3008.0,0.94714275]
[1769038574293,0.35853342,3009.3,3008.3,0.94714275]
[1769038574602,0.16629,3009.4,3008.3,0.94714275]
[1769038574804,1.30567617,3009.2,3008.0,0.94714275]
[1769038575004,1.30567617,3009.2,3007.8,2.143]
[1769038575198,1.30963721,3009.2,3007.8,2.143]
[1769038575394,1.30963721,3009.2,3007.7,0.94714275]
[1769038577304,1.47592721,3009.2,3007.7,0.94714275]
[1769038579406,1.47592721,3009.2,3008.0,0.94714275]
[1769038579708,0.35853342,3009.1,3008.0,0.94714275]
[1769038579900,0.35853342,3009.1,3007.8,0.94714275]
[1769038585302,0.35853342,3008.8,3007.5,3.27214275]
[1769038587205,0.35853342,3008.8,3007.5,6.25767043]
[1769038588711,0.1663,3009.0,3007.8,0.94714275]
[1769038592106,0.29243107,3008.8,3007.6,2.98552768]
[1769038592305,0.29243107,3008.8,3007.7,2.332]
[1769038592714,0.29243107,3008.7,3007.6,2.332]
[1769038594114,0.29243107,3008.5,3007.5,2.98552768]
[1769038595515,0.16633,3008.6,3007.5,2.98552768]
[1769038597319,0.16633,3008.6,3007.6,2.98552768]
[1769038599523,0.16633,3008.6,3007.7,2.352]
[1769038601923,0.45876107,3008.6,3007.6,2.98552768]
[1769038602226,0.29243107,3008.2,3007.4,2.98552768]
[1769038602618,0.29243107,3008.1,3007.3,2.98552768]
[1769038605927,0.29243107,3008.0,3007.3,2.98552768]
[1769038606239,0.29243107,3007.9,3007.2,2.98552768]
[1769038606530,0.29243107,3007.9,3007.1,2.98552768]
[1769038609132,0.45880107,3007.9,3007.1,2.98552768]
[1769038612538,0.16637,3007.8,3007.1,2.98552768]
[1769038613433,0.16637,3007.8,3007.0,2.98552768]
[1769038613737,1.11351275,3007.8,3007.0,5.38452768]
[1769038615039,0.16637,3007.8,3007.0,5.38452768]
[1769038615736,1.40594382,3007.8,3007.0,5.39252768]
[1769038616228,0.16638,3007.7,3007.0,5.39252768]
[1769038616434,0.16638,3007.7,3007.0,2.407]
[1769038616736,1.23957382,3007.8,3006.9,2.98552768]
[1769038616737,0.1664,3007.3,3006.9,2.98552768]
[1769038616931,0.1664,3007.3,3006.8,2.98552768]
[1769038620838,0.1664,3007.3,3006.7,2.98552768]
[1769038621148,0.42244257,3007.3,3006.8,2.429]
[1769038623241,0.1664,3007.3,3006.8,2.429]
[1769038624545,0.16637,3007.8,3006.8,2.429]
[1769038625244,0.16638,3007.7,3006.8,2.429]
[1769038625846,0.16638,3007.7,3006.7,2.442]
[1769038628852,0.16638,3007.6,3006.7,2.442]
[1769038629048,0.16639,3007.5,3006.7,2.447]
[1769038630045,0.1664,3007.3,3006.7,2.45]
[1769038630251,0.1664,3007.3,3006.5,5.43552768]
[1769038631854,0.42244257,3007.3,3006.5,5.43552768]
[1769038632552,0.25604257,3007.3,3006.5,2.98552768]
[1769038632749,0.25604257,3007.3,3006.4,2.458]
[1769038633054,0.25604257,3007.0,3006.3,0.00396507]
[1769038633247,0.42560751,3007.0,3006.3,0.00396507]
[1769038633743,0.25604257,3006.8,3006.3,0.00396507]
[1769038633944,0.25604257,3006.8,3006.1,2.98552768]
[1769038633945,0.25604257,3006.7,3006.1,2.98552768]
[1769038634255,0.25604257,3006.7,3006.0,2.98552768]
[1769038634656,0.25604257,3006.6,3006.0,2.98552768]
[1769038634956,0.16643,3006.7,3006.0,2.98938087]
[1769038635755,0.00314494,3007.0,3006.0,2.98938087]
[1769038635953,0.00314494,3007.0,3006.1,2.98552768]
[1769038636158,0.00314494,3007.0,3006.2,2.98552768]
[1769038637054,0.00314494,3007.0,3006.3,2.47]
[1769038637260,0.25918751,3007.0,3006.3,2.47]
[1769038638862,0.00314494,3007.0,3006.3,2.47]
[1769038639960,0.1664,3007.2,3006.3,5.45552768]
[1769038640360,0.1664,3007.2,3006.3,2.47]
[1769038640964,0.17020326,3007.2,3006.3,2.47]
[1769038642265,0.00380326,3007.2,3006.3,2.47]
[1769038642664,0.00380326,3007.2,3006.4,2.98552768]
[1769038645563,0.00380326,3007.2,3006.5,2.98552768]
[1769038647371,0.00380326,3007.2,3006.6,2.98552768]
[1769038647572,0.00216468,3007.2,3006.6,2.98552768]
[1769038649567,0.00216468,3007.2,3006.5,2.98552768]
[1769038650574,0.00216468,3007.2,3006.4,2.98552768]
[1769038656892,0.00216468,3007.2,3006.5,2.529]
[1769038659993,0.00216468,3007.2,3006.6,2.541]
[1769038665699,0.00216468,3007.2,3006.4,2.98552768]
[1769038665902,0.00216468,3007.2,3006.5,2.562]
[1769038668695,0.00216468,3007.2,3006.3,2.98552768]
[1769038669002,0.00216468,3007.2,3006.6,2.572]
[1769038674502,0.21486426,3007.1,3006.3,2.98552768]
[1769038674710,0.21486426,3007.1,3006.0,2.58985319]
[1769038679512,0.16856468,3007.2,3006.2,0.9475994]
[1769038680213,0.00216468,3007.2,3006.2,0.9475994]
[1769038681712,0.19994571,3007.2,3006.0,0.00385319]
[1769038681918,0.19994571,3007.2,3006.1,2.589]
[1769038682416,0.19994571,3007.2,3006.2,2.59]
[1769038682919,0.19994571,3007.2,3006.0,0.00385319]
[1769038683114,0.19994571,3007.2,3006.1,2.59]
[1769038688420,0.19994571,3007.2,3006.1,5.57552768]
[1769038689122,0.19994571,3007.2,3006.1,2.59]
[1769038690317,0.19994571,3007.2,3006.1,5.57552768]
[1769038691023,0.19994571,3007.2,3006.1,2.59]
[1769038691212,0.19994571,3007.2,3006.1,5.57552768]
[1769038692119,0.19778103,3007.6,3006.5,0.9475994]
[1769038693225,0.20160305,3007.6,3006.5,0.9475994]
[1769038694522,0.20160305,3007.6,3006.5,3.5535994]
[1769038694925,0.20160305,3007.6,3006.5,0.9475994]
[1769038695125,0.20160305,3007.6,3006.5,2.607]
[1769038695424,0.20160305,3007.6,3006.5,3.5545994]
[1769038697820,0.00382202,3007.6,3006.5,2.607]
[1769038698021,0.00382202,3007.6,3007.1,0.9475994]
[1769038699425,0.19778103,3008.0,3007.1,0.9475994]
[1769038699625,0.36412103,3008.3,3007.1,0.9475994]
[1769038699826,1.2051939,3008.2,3007.1,0.9475994]
[1769038700027,1.2051939,3008.1,3007.1,0.9475994]
[1769038700222,0.29636965,3008.0,3007.1,0.9475994]
[1769038700422,0.19778103,3008.2,3007.1,0.9475994]
[1769038700727,0.00400462,3008.0,3007.1,0.9475994]
[1769038701325,0.20178565,3008.0,3006.5,1.1140394]
[1769038701519,0.20178565,3008.0,3006.6,2.612]
[1769038701924,0.20178565,3008.0,3006.7,2.612]
[1769038702120,0.29516487,3007.9,3006.8,2.612]
[1769038702429,0.19778103,3007.8,3006.9,2.612]
[1769038705118,1.10583349,3007.7,3006.5,0.9475994]
[1769038705322,0.19778103,3007.7,3006.6,2.613]
[1769038706127,0.19778103,3007.7,3006.5,0.9475994]
[1769038706328,0.19778103,3007.5,3006.4,2.98552768]
[1769038706736,0.19778103,3007.2,3006.2,2.98552768]
[1769038707129,0.19778103,3007.2,3006.1,2.98552768]
[1769038707627,0.19778103,3007.2,3006.0,0.00385319]
[1769038708332,0.19778103,3007.2,3006.0,2.98938087]
[1769038708528,0.19778103,3007.2,3006.2,0.9475994]
[1769038708733,0.36416103,3007.6,3006.5,0.9475994]
[1769038708935,0.19778103,3007.6,3006.5,0.9475994]
[1769038710433,0.19778103,3007.5,3006.5,2.619]
[1769038710734,0.19778103,3007.5,3006.3,2.98552768]
[1769038710735,0.19778103,3007.5,3006.2,3.93312708]
[1769038710931,0.19778103,3007.5,3006.3,2.62]
[1769038712933,0.19778103,3007.5,3006.1,2.98552768]
[1769038713134,0.19778103,3007.5,3006.2,2.622]
[1769038713336,0.19778103,3007.5,3006.2,5.60752768]
[1769038715339,0.18973036,3006.9,3006.2,2.98552768]
[1769038715642,0.18973036,3006.6,3006.0,0.00385319]
[1769038728253,0.18973036,3006.3,3005.2,2.98552768]
[1769038728446,0.18973036,3006.3,3005.2,5.63352768]
[1769038728948,0.18973036,3006.3,3005.2,2.648]
[1769038729457,0.18973036,3006.3,3005.2,2.65359244]
[1769038729649,0.18973036,3006.3,3005.2,2.65459244]
[1769038730450,0.18973036,3006.3,3005.2,0.00259244]
[1769038730752,0.18973036,3006.3,3005.2,2.65559244]
[1769038731652,0.18973036,3006.3,3005.2,0.00259244]
[1769038732952,0.18973036,3006.0,3005.2,0.00259244]
[1769038740664,0.1714119,3006.5,3005.2,0.00259244]
[1769038755573,0.33681653,3006.3,3005.2,0.00259244]
[1769038755777,0.17036653,3006.2,3005.2,0.00259244]
[1769038756176,0.33682653,3006.2,3005.2,0.00259244]
[1769038756376,0.26364393,3007.2,3004.7,2.15280501]
[1769038756377,0.17036653,3005.7,3004.7,2.15280501]
[1769038756570,0.94830418,3004.9,3003.7,4.19190999]
[1769038756768,0.94830418,3005.2,3003.7,4.18096638]
[1769038757086,0.16651,3005.4,3004.3,0.0175206]
[1769038757276,0.16652,3005.1,3003.7,4.18096638]
[1769038757482,1.09687975,3005.0,3003.7,0.00325683]
[1769038757780,0.94830418,3004.8,3003.7,0.00325683]
[1769038758285,0.94830418,3004.8,3004.2,0.7702232]
[1769038758481,1.11484418,3004.8,3003.7,0.00325683]
[1769038759278,1.11484418,3004.8,3003.0,0.17225835]
[1769038759478,1.11484418,3004.8,3003.1,4.18096638]
[1769038760182,0.16654,3004.7,3003.1,4.18486957]
[1769038761084,0.16655,3004.6,3003.1,4.18486957]
[1769038761584,0.16656,3004.4,3003.1,4.18486957]
[1769038761897,0.94830418,3004.8,3003.1,4.18486957]
[1769038762190,0.16658,3004.0,3003.1,0.00390319]
[1769038763186,0.16658,3004.0,3003.1,4.18486957]
[1769038764378,0.16658,3004.0,3003.1,0.00390319]
[1769038764583,0.94830418,3003.2,3001.5,0.17225835]
[1769038764785,0.16668,3002.2,3001.5,4.14321104]
[1769038764983,0.16668,3002.2,3001.0,0.17225835]
[1769038765176,0.16669,3002.0,3001.1,4.14321104]
[1769038765382,0.16669,3002.0,3000.7,0.17225835]
[1769038765581,0.16982249,3002.0,3001.1,0.0035058]
[1769038765787,0.1667,3001.9,3001.1,0.0035058]
[1769038765990,0.00313249,3002.0,3001.2,4.14321104]
[1769038766183,0.94830418,3001.9,2999.6,0.17225835]
[1769038766487,0.00313249,3002.0,3000.3,0.17225835]
[1769038766881,0.00313249,3002.0,3000.7,0.17225835]
[1769038767182,0.00313249,3002.0,3000.7,0.17577061]
[1769038771288,0.16665,3002.8,3000.9,0.2452822]
[1769038771490,0.16661,3003.5,3001.0,0.2452822]
[1769038771687,0.16661,3003.5,3001.1,0.2452822]
[1769038771993,0.16662,3003.4,3001.1,0.2452822]
[1769038772191,0.16663,3003.2,3001.1,0.2452822]
[1769038772393,0.16901888,3003.2,3001.1,0.2452822]
[1769038774088,0.00238888,3003.2,3001.3,0.2452822]
[1769038774489,0.00238888,3003.2,3001.3,0.4120122]
[1769038774695,0.00238888,3003.2,3001.4,0.2452822]
[1769038774892,0.00238888,3003.2,3001.4,0.4120122]
[1769038775094,0.00238888,3003.2,3001.5,0.2452822]
[1769038775287,0.00238888,3003.2,3001.7,0.2452822]
[1769038776683,0.00238888,3003.2,3001.7,0.4119922]
[1769038776883,0.00238888,3003.2,3001.6,1.852]
[1769038776884,0.00238888,3003.2,3001.9,0.2452822]
[1769038777084,0.16656,3004.5,3002.2,0.16668]
[1769038777291,1.1145015,3004.4,3002.5,0.2452822]
[1769038777494,0.16656,3004.5,3002.7,0.2452822]
[1769038777690,1.10641451,3004.4,3002.7,0.2452822]
[1769038777892,1.19091482,3005.0,3002.8,0.2452822]
[1769038778091,1.10643923,3004.9,3003.0,0.2452822]
[1769038778396,1.10643923,3004.8,3003.0,0.24933853]
[1769038778695,1.10643923,3004.7,3003.0,0.24933853]
[1769038778897,1.10643923,3004.6,3003.0,0.24933853]
[1769038779094,0.0035294,3005.0,3003.0,0.24933853]
[1769038779287,1.1067883,3004.9,3003.0,0.24933853]
[1769038779491,1.1067883,3004.8,3003.0,0.24933853]
[1769038779694,1.1067883,3004.7,3003.0,0.24933853]
[1769038780890,0.52080962,3004.6,3003.0,0.24933853]
[1769038781092,1.62759792,3004.5,3003.0,0.24933853]
[1769038781388,1.86695483,3004.4,3003.0,0.00405633]
[1769038781599,0.16659,3003.9,3003.0,0.00405633]
[1769038781896,0.52080962,3003.8,3002.1,0.2452822]
[1769038782897,0.52080962,3003.8,3002.1,0.24844819]
[1769038785294,1.11089657,3003.7,3002.1,0.24844819]
[1769038785495,0.16659,3003.9,3002.1,0.24844819]
[1769038785496,0.52080962,3003.6,3002.1,0.24844819]
[1769038785696,0.52080962,3003.5,3002.1,0.24844819]
[1769038786001,0.16659,3003.9,3002.1,0.24844819]
[1769038786201,1.63172386,3003.8,3002.3,0.2452822]
[1769038786405,1.63172386,3003.7,3002.3,0.2452822]
[1769038786705,1.63172386,3003.6,3002.3,0.2452822]
[1769038786891,0.52092716,3003.5,3002.3,0.2452822]
[1769038787200,0.52092716,3003.4,3002.3,0.2452822]
[1769038787501,0.16659,3003.9,3002.3,0.2452822]
[1769038787704,1.63311356,3003.8,3002.3,0.2452822]
[1769038787900,1.63311356,3003.7,3002.3,0.2452822]
[1769038788108,1.63311356,3003.6,3002.3,0.2452822]
[1769038788293,0.52092734,3003.5,3002.3,0.2452822]
[1769038788497,0.52092734,3003.4,3002.3,0.2452822]
[1769038788698,0.16659,3003.9,3002.3,0.2452822]
[1769038788907,1.63360198,3003.8,3002.3,0.2452822]
[1769038789103,1.63360198,3003.7,3002.3,0.2452822]
[1769038789409,1.63360198,3003.6,3002.3,0.2452822]
[1769038789705,1.63360198,3003.5,3002.3,0.2452822]
[1769038789904,0.52092727,3003.4,3002.3,0.2452822]
[1769038790106,0.16659,3003.9,3002.3,0.2452822]
[1769038790300,1.63373743,3003.8,3002.3,0.2452822]
[1769038790503,1.63373743,3003.7,3002.3,0.2452822]
[1769038790700,1.63373743,3003.6,3002.3,0.2452822]
[1769038791004,1.63373743,3003.5,3002.3,0.2452822]
[1769038791209,0.52092125,3003.4,3002.3,0.2452822]
[1769038791407,1.11072364,3003.3,3002.3,0.2452822]
[1769038791606,1.11072364,3003.2,3002.3,0.2452822]
[1769038791807,1.11072364,3003.1,3002.3,0.2452822]
[1769038792112,1.19091482,3003.3,3002.3,0.2452822]
[1769038792113,1.11072364,3003.0,3002.3,0.2452822]
[1769038792406,1.11072364,3002.9,3002.3,0.2452822]
[1769038792600,1.11072364,3002.8,3002.3,0.2452822]
[1769038792800,0.3470687,3002.7,3002.2,2.676]
[1769038793005,1.19091482,3003.1,3002.2,2.676]
[1769038793806,1.19091482,3003.0,3002.2,2.676]
[1769038794008,1.19401545,3003.0,3002.2,2.676]
[1769038795110,1.19401545,3003.0,3002.1,0.16985599]
[1769038795311,1.19091482,3002.9,3002.1,1.85516599]
[1769038797512,0.80042367,3002.9,3002.1,1.85516599]
[1769038799512,0.00310063,3003.0,3002.1,1.85516599]
[1769038800304,1.63641978,3003.2,3002.1,2.02185599]
[1769038801015,2.38051379,3003.3,3002.1,2.02185599]
[1769038801406,0.00258572,3003.3,3002.1,2.02185599]
[1769038802321,0.45368577,3003.3,3002.1,2.02185599]
[1769038802510,0.45368577,3003.3,3002.1,0.00316599]
[1769038803615,0.45110005,3003.1,3002.1,0.00316599]
[1769038804814,1.07477144,3003.0,3002.1,0.00316599]
[1769038805020,1.52587149,3002.9,3002.1,0.00316599]
[1769038805216,1.07477144,3002.8,3002.1,0.00316599]
[1769038805515,1.07477144,3002.7,3002.1,0.00316599]
[1769038805716,1.07477144,3002.6,3002.1,0.00316599]
[1769038805917,1.07477144,3002.5,3002.1,0.00316599]
[1769038806220,0.45110005,3002.9,3002.1,0.00316599]
[1769038806417,1.07436583,3002.8,3002.1,0.00316599]
[1769038806610,1.07436583,3002.7,3002.1,0.00316599]
[1769038806816,1.07436583,3002.6,3002.1,0.00316599]
[1769038807016,1.07436583,3002.5,3002.1,0.00316599]
[1769038807319,0.45110005,3002.9,3002.1,0.00316599]
[1769038807519,1.07435691,3002.8,3002.1,0.00316599]
[1769038807717,1.07435691,3002.7,3002.1,0.00316599]
[1769038807915,1.52545696,3002.6,3002.1,0.00316599]
[1769038808114,1.07435691,3002.5,3002.1,0.00316599]
[1769038808314,0.45110005,3002.6,3002.1,0.00316599]
[1769038808515,1.0687936,3002.5,3002.1,0.00316599]
[1769038808814,0.45110005,3002.6,3002.1,0.00316599]
[1769038809117,1.06879388,3002.5,3002.1,0.00316599]
[1769038809318,0.45110005,3002.6,3001.6,2.01871]
[1769038809511,1.0690223,3002.5,3001.6,2.01871]
[1769038809713,0.45110005,3002.6,3001.6,2.01871]
[1769038810022,0.45110005,3002.4,3001.6,1.852]
[1769038810220,0.45110005,3002.4,3001.6,1.85601018]
[1769038810821,0.45110005,3002.4,3001.6,2.67401018]
[1769038811616,0.45110005,3002.2,3001.6,0.00401018]
[1769038812227,0.45110005,3002.0,3000.5,3.331]
[1769038812418,0.45110005,3001.8,2998.8,0.21448108]
[1769038812721,0.45110005,3001.6,2998.9,2.53748108]
[1769038813022,1.5490095,3001.7,2998.9,2.53748108]
[1769038813023,0.45110005,3001.4,2999.1,0.05801736]
[1769038813224,0.45110005,3001.4,2999.1,0.06148755]
[1769038813421,0.45110005,3001.4,2999.4,0.16684]
[1769038813623,0.45110005,3001.2,2999.4,0.16684]
[1769038813921,0.45110005,3001.0,2999.4,0.16684]
[1769038814121,0.45110005,3000.8,2999.4,0.16684]
[1769038814317,0.45110005,3000.8,2999.1,0.00347019]
[1769038814520,0.45110005,3000.6,2999.1,0.00347019]
[1769038814824,0.45110005,3000.4,2999.1,0.00347019]
[1769038815817,0.00422831,3001.0,2999.7,0.16682]
[1769038816122,0.00422831,3001.0,2999.1,0.248899]
[1769038816123,0.45110005,3002.4,3000.6,0.16677]
[1769038816420,0.47686807,3002.3,3000.7,1.852]
[1769038816616,0.45110005,3002.1,3000.3,0.16678]
[1769038816818,0.45110005,3001.9,3000.4,2.027]
[1769038817012,0.45110005,3001.7,3000.1,2.715]
[1769038820917,0.45110005,3001.7,2999.8,0.16681]
[1769038821129,0.45110005,3001.5,2999.6,1.852]
[1769038821323,0.45110005,3001.3,2999.6,1.852]
[1769038822226,0.45110005,3001.3,2999.2,0.16685]
[1769038822522,1.39888217,3001.6,2999.1,0.00347019]
[1769038822523,0.45110005,3000.4,2999.1,0.00347019]
[1769038824616,0.45110005,3000.4,2998.0,1.91002848]
[1769038825122,0.45110005,3000.4,2998.0,2.07693848]
[1769038825322,0.45110005,3000.4,2998.0,1.91002848]
[1769038825924,0.45110005,3000.4,2998.1,0.16691]
[1769038826327,0.45110005,2998.6,2995.9,0.27365363]
[1769038826525,0.45110005,3000.2,2996.7,0.46404455]
[1769038826723,0.45110005,3000.2,2997.6,0.63098455]
[1769038827019,0.45110005,3000.2,2997.7,2.751]
[1769038827324,0.45110005,3000.0,2997.7,0.00374067]
[1769038827631,0.45110005,2999.8,2997.8,2.752]
[1769038827831,0.45110005,2999.6,2997.8,8.72314992]
[1769038828034,0.45110005,2999.6,2998.0,5.97114992]
[1769038828233,0.45110005,2999.6,2998.2,5.97114992]
[1769038828531,0.45110005,3000.1,2998.4,1.39888217]
[1769038828828,1.6304996,3001.0,2999.1,1.39888217]
[1769038829029,0.45110005,3000.8,2999.2,1.853]
[1769038829327,1.17939955,3001.0,2999.3,2.762]
[1769038829328,0.45110005,3000.6,2999.3,2.762]
[1769038829525,1.55003062,3000.5,2999.4,2.762]
[1769038829720,1.55003062,3000.5,2998.3,0.1669]
[1769038829721,0.45110005,3000.3,2998.3,0.1669]
[1769038829926,0.00375195,3000.5,2998.5,5.97114992]
[1769038829927,0.45110005,3000.1,2998.5,5.97114992]
[1769038830125,0.45110005,3000.1,2998.6,2.766]
[1769038830433,0.45110005,2999.9,2998.5,2.768]
[1769038830725,0.45110005,2999.9,2998.5,8.73914992]
[1769038830931,0.45110005,3000.4,2999.0,5.97114992]
[1769038831132,1.54742031,3000.3,2998.7,5.97114992]
[1769038831332,1.09632026,3000.2,2998.7,5.97114992]
[1769038831532,0.45110005,3000.3,2998.9,5.97114992]
[1769038831833,0.45110005,3000.3,2998.8,5.97114992]
[1769038832029,0.45110005,3000.3,2998.9,2.773]
[1769038832933,0.45110005,3000.3,2999.1,5.97114992]
[1769038833236,0.45110005,3000.3,2999.0,5.97114992]
[1769038833436,0.45110005,3000.3,2998.3,1.56578217]
[1769038833734,0.45110005,3000.3,2998.6,5.97114992]
[1769038834129,0.45110005,3000.3,2998.8,5.97114992]
[1769038834530,0.45110005,3000.3,2999.1,5.97114992]
[1769038834723,0.45110005,3000.3,2997.8,0.05803971]
[1769038834929,0.45110005,3000.3,2997.9,1.853]
[1769038836637,0.45110005,3000.3,2998.1,5.97114992]